[Event "2nd Bassano Easter 2022"]
[Site "Bassano del Grappa"]
[Date "2022.04.18"]
[Round "9.9"]
[White "Abel, Dennes"]
[Black "Olde, Margareth"]
[Result "0-1"]
[ECO "E32"]
[WhiteElo "2442"]
[BlackElo "2258"]
[Annotator "TA"]
[PlyCount "118"]
[EventDate "2022.04.14"]
[EventType "swiss"]
[EventCountry "ITA"]
[SourceTitle "playchess.com"]
[Source "ChessBase"]
[SourceQuality "1"]
[TimeControl "30/3600+30:1800+30"]

{[%evp 13,118,0,0,0,0,0,0,0,0,0,-5,-35,-36,-31,0,0,0,0,0,0,2,-5,-26,-65,56,62,167,151,195,185,187,167,173,128,245,196,346,344,325,348,597,578,616,597,530,491,407,234,202,234,614,202,211,69,69,69,69,69,69,62,177,170,635,635,635,622,616,573,314,284,1224,1293,1480,1468,1850,1715,2529,-72,-72,-72,-72,-72,-72,-72,-72,-7208,-5789,-29977,-29978,-29978,-29979,-29979,-29978,-29980,-29981,-29981,-29982,-29982,-29983,-29983,-29984,-29984,-29985,-29986,-29987,-29988,-29989]} 1. d4 {[%emt 0:06:07]} Nf6 {[%emt 0:00:09]} 2. c4 {[%emt 0:00:07]} e6 {[%emt 0:00:03]} 3. Nc3 {[%emt 0:00:07]} Bb4 {[%emt 0:00:28]} 4. Qc2 {[%emt 0:00:08]} O-O {[%emt 0:02:03]} 5. e4 {[%emt 0:00:15]} d5 {[%emt 0:01:21]} 6. e5 {[%emt 0:00:09]} Ne4 {[%emt 0:00:48]} 7. Bd3 {[%emt 0:00:08]} c5 {[%emt 0:01:44]} 8. Nf3 {[%emt 0:00:57] E32: Nimzo-Indian: Classical (4 Qc2): 4...0-0.} cxd4 {[%emt 0:00:23]} 9. Nxd4 {[%emt 0:00:07]} Nd7 {[%emt 0:00:20]} 10. Bf4 {[%emt 0:00:10] The position is equal.} Qh4 {[%emt 0:00:32]} 11. g3 {[%emt 0:00:08]} Qh5 {[%emt 0:00:47]} 12. h4 {[%emt 0:01:11]} Nxe5 {[%emt 0:02:54]} 13. Be2 {[%emt 0:00:49][%mdl 64] Deflection} Qg6 {[%emt 0:00:04] ...Nxc3 is the strong threat.} (13... Bxc3+ 14. bxc3 Ng4 15. Bxg4 (15. f3 e5 $17) 15... Qxg4 16. f3 $16) 14. Bxe5 {[%emt 0:11:25]} f6 {[%emt 0:01:32]} 15. h5 {[%emt 0:01:58]} Qf7 {[%emt 0:00:04]} 16. Bf4 {[%emt 0:04:29]} e5 $132 {[%emt 0:00:04][%mdl 2048] [#] Black is not keeping still} 17. O-O-O $146 {[%emt 0:05:43][%csl LRd5,LRe4]} ({Predecessor:} 17. cxd5 Qxd5 18. O-O Bxc3 19. bxc3 exf4 20. gxf4 Ng5 21. fxg5 Qxg5+ 22. Kh2 Qh4+ 23. Kg1 Qg5+ 24. Kh2 Qh4+ 25. Kg1 Qg5+ 26. Kh2 {½-½ (26) Chigaev,M (2639)-Predke,A (2666) Ufa 2021}) 17... Bxc3 {[%emt 0:14:56]} (17... exf4 18. Nxd5 Nxf2 19. Nxb4 $16) 18. bxc3 {[%emt 0:01:19]} exd4 {[%emt 0:00:12]} (18... Nxf2 19. Bf3 $1 Ne4 20. cxd5 $1 $16) (18... exf4 $15 19. Bf3 fxg3) 19. Rxd4 $14 {[%emt 0:03:10]} Qe7 {[%emt 0:03:58]} (19... Nxf2 $14 20. Rf1 Ng4) 20. Kb2 $18 {[%emt 0:02:59]} (20. cxd5 Qa3+ 21. Qb2 Qxc3+ 22. Qxc3 Nxc3 $16) 20... Nxf2 {[%emt 0:10:00]} 21. Re1 {[%emt 0:06:38]} Ne4 {[%emt 0:04:41]} 22. cxd5 {[%emt 0:01:47]} Nd6 {[%emt 0:00:31]} 23. g4 {[%emt 0:08:36]} b5 {[%emt 0:04:36]} (23... Re8 $16 {was worth a try.}) 24. Bg3 {[%emt 0:03:21] And now Bd3 would win. This bishop pair is nice.} (24. Bxd6 Qxd6 25. h6 g6 $16) 24... Qd8 {[%emt 0:03:43]} (24... Qd7 {was called for.} 25. Bd3 (25. Bxd6 Qxd6 26. Bd3 h6 $14) 25... h6) 25. h6 {[%emt 0:01:26]} g6 {[%emt 0:01:50]} 26. Bd3 {[%emt 0:00:45][%cal Od3g6] Strongly threatening Bxg6!} ({Less strong is} 26. Bxd6 Qxd6 27. Bd3 f5 $16) 26... f5 $2 {[%emt 0:02:27]} (26... Rb8 27. Bxg6 Rb7) 27. Qh2 {[%emt 0:02:21]} Nc4+ {[%emt 0:03:19]} 28. Ka1 {[%emt 0:05:39]} (28. Bxc4 bxc4 29. Bd6 Rf7 $16) 28... Re8 {[%emt 0:04:13]} 29. Rxe8+ {[%emt 0:01:49]} Qxe8 {[%emt 0:00:03]} 30. Bxc4 {[%emt 0:00:00]} (30. d6 $142) 30... bxc4 {[%emt 0:00:00]} 31. Qd2 {[%emt 0:06:18] Inhibits Qe3.} (31. Rxc4 Qe3 32. Bf4 Qe1+ 33. Kb2 fxg4 $16) 31... fxg4 $2 {[%emt 0:09:30]} (31... Bd7 32. Rxc4 fxg4) 32. Rxc4 $2 {[%emt 0:02:13]} (32. d6 {White threatens d7 and mate.} Bd7 33. Rf4) 32... Qf7 {[%emt 0:00:50]} 33. Re4 {[%emt 0:13:56]} (33. Rc7 $18 Bd7 34. Rb7) 33... Bf5 $14 {[%emt 0:04:06]} 34. Re5 {[%emt 0:00:11]} Re8 $1 {[%emt 0:04:17]} 35. Qe3 {[%emt 0:02:46]} Rxe5 {[%emt 0:00:49]} 36. Qxe5 {[%emt 0:00:14]} Bd3 {[%emt 0:03:52]} (36... Qf8 $14) 37. Bf2 $18 {[%emt 0:03:11]} a6 $2 {[%emt 0:04:42]} (37... Bb5 38. a4 (38. Bd4 Qf1+ 39. Kb2 Qe2+ 40. Qxe2 Bxe2 $16) 38... g3 39. Bxg3 Bc4) 38. Bd4 {[%emt 0:05:12][%csl Gd4][%cal Re5h8]} Qf1+ {[%emt 0:00:26]} 39. Kb2 {[%emt 0:00:02][%csl Gd4,Gh6][%cal Re5g7]} Qe2+ {[%emt 0:03:07]} 40. Qxe2 {[%emt 0:00:31]} Bxe2 {[%emt 0:00:04][%mdl 4096] Endgame KB-KB} 41. Kb3 {[%emt 0:01:08] Prevents Bc4+. Hoping for Be5.} Kf7 $2 {[%emt 0:01:04]} (41... g3 42. c4 Kf8) 42. Be5 {[%emt 0:00:46]} g5 {[%emt 0:01:25]} 43. c4 {[%emt 0:00:43]} Kg6 {[%emt 0:01:03]} 44. c5 {[%emt 0:00:22]} Kf5 {[%emt 0:02:13]} 45. c6 $2 {[%emt 0:00:20]} Bf3 $17 {[%emt 0:00:30]} (45... Kxe5 $2 46. c7 Bd3 47. c8=Q $18) 46. c7 {[%emt 0:01:12]} Bxd5+ {[%emt 0:00:06]} 47. Kc3 {[%emt 0:00:02] [#]} Bb7 {[%emt 0:02:20]} 48. Kd4 {[%emt 0:00:12] [#]} Kg6 $1 {[%emt 0:00:40]} 49. Kc5 $2 {[%emt 0:00:31][%mdl 8192]} (49. Bg7 $17) 49... Kxh6 $19 {[%emt 0:01:19] aiming for ...Kh5.} 50. a4 {[%emt 0:00:13]} Kg6 {[%emt 0:00:16] Black mates.} 51. Kb6 {[%emt 0:00:09]} Bc8 {[%emt 0:00:04]} 52. Ka7 {[%emt 0:00:18]} h5 {[%emt 0:00:17][%cal Bh7h5,Bh5h4,Bh4h3][%mdl 32]} 53. a5 {[%emt 0:00:14]} h4 {[%emt 0:00:33]} 54. Kb8 {[%emt 0:00:04]} Be6 {[%emt 0:00:22]} 55. c8=Q {[%emt 0:03:24]} Bxc8 {[%emt 0:00:03]} 56. Kxc8 {[%emt 0:00:00]} g3 {[%emt 0:00:08][%cal Bg4g3,Bg3g2][%mdl 32]} 57. Kb7 {[%emt 0:00:00]} g2 {[%emt 0:00:10]} 58. Bd4 {[%emt 0:00:00]} h3 {[%emt 0:00:41]} 59. Bg1 {[%emt 0:00:00]} g4 {[%emt 0:00:09] Quite a comeback for Black.  Weighted Error Value: White=0.51/Black=0.43} 0-1

[Event "2nd Bassano Easter 2022"]
[Site "Bassano del Grappa"]
[Date "2022.04.18"]
[Round "9.10"]
[White "Petkidis, Anthony"]
[Black "Hess, Max"]
[Result "1/2-1/2"]
[ECO "B53"]
[WhiteElo "2420"]
[BlackElo "2395"]
[Annotator "TA"]
[PlyCount "84"]
[EventDate "2022.04.14"]
[EventType "swiss"]
[EventCountry "ITA"]
[SourceTitle "playchess.com"]
[Source "ChessBase"]
[SourceQuality "1"]
[TimeControl "30/3600+30:1800+30"]

{[%evp 9,84,7,0,8,13,13,22,0,0,0,18,0,0,0,0,2,0,0,-10,-35,-35,-23,-35,-38,0,-45,-7,-27,0,0,0,0,5,26,18,27,35,6,18,16,20,8,50,45,49,56,77,49,66,63,85,77,65,60,110,118,113,106,225,151,164,160,255,246,423,297,297,297,447,447,464,447,437,437,386,0,485]} 1. e4 {[%emt 0:00:01]} c5 {[%emt 0:00:04]} 2. Nf3 {[%emt 0:00:05]} d6 {[%emt 0:00:03]} 3. d4 {[%emt 0:00:11]} cxd4 {[%emt 0:00:04]} 4. Qxd4 {[%emt 0:00:16]} Nc6 {[%emt 0:00:03]} 5. Qe3 {[%emt 0:00:05]} g6 {[%emt 0:00:04]} 6. Be2 {[%emt 0:00:26] B53: Sicilian: 2...d6: Lines with Qxd4.} Bg7 {[%emt 0:00:04]} 7. O-O {[%emt 0:00:15]} Nf6 {[%emt 0:00:03]} 8. h3 {[%emt 0:00:08]} O-O {[%emt 0:00:04]} 9. Rd1 {[%emt 0:00:12]} Be6 {[%emt 0:00:33]} 10. Nc3 {[%emt 0:00:34]} Rc8 {[%emt 0:00:04][%cal Ba8c8,Bc8c3,Bc3h3][%mdl 32]} 11. a3 {[%emt 0:04:16]} a6 {[%emt 0:00:05]} 12. Qf4 {[%emt 0:01:23]} Qa5 {[%emt 0:21:17]} 13. Qh4 {[%emt 0:07:55] [#]} Ne5 $146 {[%emt 0:03:45]} ({Predecessor:} 13... b5 14. Bh6 Ne5 15. Ng5 Rxc3 16. bxc3 Qxc3 17. Bd3 Nxd3 18. cxd3 Bb3 19. Rac1 Qb2 {½-½ (49) Quesada Perez,Y (2582)-Saric,I (2667) chess24.com INT 2020}) 14. Ng5 {[%emt 0:06:53]} Rxc3 {[%emt 0:00:39]} 15. Bd2 {[%emt 0:04:31][%mdl 64] [#] Pin} (15. bxc3 Bd7 16. Qf4 Ba4) 15... Rxh3 {[%emt 0:00:08]} 16. Nxh3 {[%emt 0:04:40]} (16. Bxa5 $2 {loses.} Rxh4 17. Nxe6 fxe6 $19) 16... Qb6 {[%emt 0:00:06]} (16... Qa4 $5 {[%cal Ra4c2]}) 17. Bc3 {[%emt 0:37:09]} Bxh3 {[%emt 0:00:06]} (17... h6 $5 {[%cal Rg6g5]} 18. Bd4 Qc6 $11) 18. gxh3 {[%emt 0:03:06]} g5 {[%emt 0:02:17][%mdl 64] Decoy} 19. Qxg5 {[%emt 0:00:28]} Nxe4 {[%emt 0:04:23]} 20. Bd4 {[%emt 0:00:38] Hoping for Qxg7+. Dancing on a razor blade. A strong pair of Bishops.} Nxg5 {[%emt 0:02:52][%cal Be4g5,Bg5h3,Bh3f4][%mdl 32]} 21. Bxb6 {[%emt 0:00:05]} Nxh3+ {[%emt 0:00:03]} 22. Kf1 {[%emt 0:00:46]} Nf4 {[%emt 0:00:05]} 23. Bd4 {[%emt 0:07:01][%mdl 1024] White has compensation.} Rc8 {[%emt 0:01:32]} 24. c3 {[%emt 0:00:33]} h5 {[%emt 0:00:04]} 25. Be3 {[%emt 0:07:13]} Neg6 {[%emt 0:01:09]} 26. Bf3 {[%emt 0:00:26]} Rc7 {[%emt 0:00:03]} 27. a4 {[%emt 0:01:23][%cal Ba3a4,Ba4a5][%mdl 32]} h4 {[%emt 0:00:11]} 28. a5 {[%emt 0:01:48]} (28. Ra3 $5 {[%cal Ra3b3]}) 28... Be5 {[%emt 0:00:18]} 29. Ra4 {[%emt 0:02:08]} h3 {[%emt 0:00:37]} 30. Kg1 $1 {[%emt 0:00:00]} e6 {[%emt 0:00:00]} 31. Kh1 {[%emt 0:14:26]} f5 {[%emt 0:00:28] [#]} ({Black should try} 31... Kg7 $14) 32. Rb4 $1 $16 {[%emt 0:04:06]} d5 {[%emt 0:00:51] [#]} 33. c4 $1 {[%emt 0:00:02][%cal Rc4d5]} dxc4 {[%emt 0:09:10]} (33... Rd7 $16 {was called for.}) 34. Rd8+ $18 {[%emt 0:01:51]} (34. Rxb7 Nf8 35. Rxc7 Bxc7 36. Bxf4 Bxf4 $18) 34... Kf7 {[%emt 0:00:45]} 35. Rxb7 {[%emt 0:00:02]} Rxb7 {[%emt 0:00:44]} (35... Kf6 $16 36. Rxc7 Bxc7) 36. Bxb7 {[%emt 0:00:01]} Bxb2 $2 {[%emt 0:00:07]} (36... Nd5 37. Rc8 Ngf4) 37. Rc8 {[%emt 0:03:20]} Nd5 {[%emt 0:03:49]} 38. Rxc4 {[%emt 0:02:10]} Nxe3 {[%emt 0:00:47]} (38... Ne5 $142 39. Rc2 f4) 39. fxe3 {[%emt 0:00:02]} Ne5 {[%emt 0:00:05]} 40. Rc7+ {[%emt 0:08:37]} Kf6 {[%emt 0:00:03]} 41. Bxa6 {[%emt 0:00:18] Strongly threatening Be2.} Ng4 {[%emt 0:00:04]} 42. Rh7 $2 {[%emt 0:04:22]} (42. Bb7 $18) 42... Ke5 $2 {[%emt 0:53:51][%mdl 40960] Weighted Error Value: White=0.18 (very precise) /Black=0.21 (precise) . An unexpected result.} (42... Bc3 $11 {and Black has nothing to worry.}) 1/2-1/2